[Event "Titled Tuesday Blitz January 25 2022"]
[White "Cunjalo, Faris"]
[Black "Andreikin, Dmitry"]
[WhiteFideId "14410710"]
[BlackFideId "4158814"]
[WhiteElo "2908"]
[BlackElo "3004"]
[Result "0-1"]
[Round "07"]
[TimeControl "180+1"]
[Date "2022.01.26"]
[WhiteClock "0:00:02"]
[BlackClock "0:00:06"]

1. d4 {[%clk 0:03:00]}  d5 {[%clk 0:02:59]} 2. Nf3 {[%clk 0:03:01]}  Nf6 {[%clk 0:02:59]} 3. g3 {[%clk 0:03:00]}  b5 {[%clk 0:02:58]} 4. Qd3 {[%clk 0:02:56]}  a6 {[%clk 0:02:52]} 5. Bg2 {[%clk 0:02:54]}  e6 {[%clk 0:02:49]} 6. Bg5 {[%clk 0:02:54]}  Nbd7 {[%clk 0:02:45]} 7. Nbd2 {[%clk 0:02:52]}  c5 {[%clk 0:02:44]} 8. e4 {[%clk 0:02:48]}  h6 {[%clk 0:02:21]} 9. Bxf6 {[%clk 0:02:46]}  Nxf6 {[%clk 0:02:22]} 10. exd5 {[%clk 0:02:27]}  Nxd5 {[%clk 0:02:20]} 11. O-O {[%clk 0:02:27]}  Bb7 {[%clk 0:02:17]} 12. Rfe1 {[%clk 0:01:51]}  Be7 {[%clk 0:02:12]} 13. dxc5 {[%clk 0:01:43]}  Bxc5 {[%clk 0:02:08]} 14. Ne4 {[%clk 0:01:43]}  Ba7 {[%clk 0:02:01]} 15. Qa3 {[%clk 0:01:26]}  b4 {[%clk 0:01:44]} 16. Qa4+ {[%clk 0:01:26]}  Kf8 {[%clk 0:01:16]} 17. c4 {[%clk 0:01:26]}  bxc3 {[%clk 0:01:14]} 18. bxc3 {[%clk 0:01:27]}  Qc7 {[%clk 0:01:08]} 19. c4 {[%clk 0:01:24]}  Nf6 {[%clk 0:01:06]} 20. Nxf6 {[%clk 0:00:45]}  gxf6 {[%clk 0:01:07]} 21. Rad1 {[%clk 0:00:45]}  Bc6 {[%clk 0:00:56]} 22. Qa3+ {[%clk 0:00:32]}  Kg7 {[%clk 0:00:51]} 23. Nh4 {[%clk 0:00:31]}  Rhd8 {[%clk 0:00:40]} 24. Qc3 {[%clk 0:00:24]}  Rac8 {[%clk 0:00:30]} 25. Qc2 {[%clk 0:00:16]}  Rxd1 {[%clk 0:00:27]} 26. Rxd1 {[%clk 0:00:16]}  Bxg2 {[%clk 0:00:27]} 27. Kxg2 {[%clk 0:00:17]}  Qxc4 {[%clk 0:00:23]} 28. Qxc4 {[%clk 0:00:16]}  Rxc4 {[%clk 0:00:23]} 29. Rd7 {[%clk 0:00:17]}  Bc5 {[%clk 0:00:21]} 30. Rc7 {[%clk 0:00:12]}  Rc3 {[%clk 0:00:20]} 31. Nf3 {[%clk 0:00:11]}  a5 {[%clk 0:00:18]} 32. Nd2 {[%clk 0:00:09]}  Bd4 {[%clk 0:00:18]} 33. Rd7 {[%clk 0:00:08]}  Bb6 {[%clk 0:00:15]} 34. Ne4 {[%clk 0:00:06]}  Rc2 {[%clk 0:00:15]} 35. a4 {[%clk 0:00:06]}  f5 {[%clk 0:00:14]} 36. Nd6 {[%clk 0:00:07]}  Rxf2+ {[%clk 0:00:14]} 37. Kh3 {[%clk 0:00:08]}  Kg6 {[%clk 0:00:13]} 38. Nxf7 {[%clk 0:00:07]}  Ra2 {[%clk 0:00:10]} 39. Ne5+ {[%clk 0:00:07]}  Kf6 {[%clk 0:00:10]} 40. Nc4 {[%clk 0:00:07]}  Bg1 {[%clk 0:00:09]} 41. g4 {[%clk 0:00:04]}  fxg4+ {[%clk 0:00:08]} 42. Kxg4 {[%clk 0:00:04]}  Rxa4 {[%clk 0:00:08]} 43. Rc7 {[%clk 0:00:04]}  Bxh2 {[%clk 0:00:08]} 44. Rc6 {[%clk 0:00:05]}  Rb4 {[%clk 0:00:07]} 45. Kf3 {[%clk 0:00:05]}  a4 {[%clk 0:00:07]} 46. Ke3 {[%clk 0:00:04]}  Be5 {[%clk 0:00:06]} 47. Kd3 {[%clk 0:00:04]}  Bb2 {[%clk 0:00:06]} 48. Ra6 {[%clk 0:00:02]}  a3 {[%clk 0:00:07]} 49. Ra8 {[%clk 0:00:02]}  h5 {[%clk 0:00:07]} 50. Ne3 {[%clk 0:00:02]}  Rb3+ {[%clk 0:00:06]} 51. Ke4 {[%clk 0:00:02]}  Rb4+ {[%clk 0:00:06]} 52. Kf3 {[%clk 0:00:02]}  h4 {[%clk 0:00:06]} 53. Ng4+ {[%clk 0:00:02]}  Ke7 {[%clk 0:00:07]} 54. Ra7+ {[%clk 0:00:02]}  Kd6 {[%clk 0:00:07]} 55. Ne3 {[%clk 0:00:03]}  Kc5 {[%clk 0:00:07]} 56. Rc7+ {[%clk 0:00:02]}  Kb6 {[%clk 0:00:06]} 0-1


[Site "https://www.chess.com"]

[Event "Titled Tuesday Blitz January 25 2022"]
[White "Deac, Bogdan-Daniel"]
[Black "Jobava, Baadur"]
[WhiteFideId "1226380"]
[BlackFideId "13601520"]
[WhiteElo "3013"]
[BlackElo "2919"]
[Result "0-1"]
[Round "07"]
[TimeControl "180+1"]
[Date "2022.01.26"]
[WhiteClock "0:00:08"]
[BlackClock "0:00:10"]

1. e4 {[%clk 0:03:00]}  c6 {[%clk 0:02:59]} 2. Nf3 {[%clk 0:03:00]}  d5 {[%clk 0:03:00]} 3. d3 {[%clk 0:03:00]}  Bg4 {[%clk 0:02:58]} 4. h3 {[%clk 0:03:00]}  Bxf3 {[%clk 0:02:59]} 5. Qxf3 {[%clk 0:03:01]}  e6 {[%clk 0:02:59]} 6. g3 {[%clk 0:03:02]}  Nd7 {[%clk 0:02:56]} 7. Bg2 {[%clk 0:03:02]}  g6 {[%clk 0:02:56]} 8. Qe2 {[%clk 0:02:57]}  Ne7 {[%clk 0:02:53]} 9. O-O {[%clk 0:02:55]}  Bg7 {[%clk 0:02:53]} 10. Nd2 {[%clk 0:02:56]}  O-O {[%clk 0:02:53]} 11. c3 {[%clk 0:02:56]}  a5 {[%clk 0:02:53]} 12. a4 {[%clk 0:02:55]}  dxe4 {[%clk 0:02:50]} 13. dxe4 {[%clk 0:02:52]}  Nc5 {[%clk 0:02:48]} 14. Nc4 {[%clk 0:02:36]}  Nb3 {[%clk 0:02:39]} 15. Rd1 {[%clk 0:02:35]}  Qc7 {[%clk 0:02:33]} 16. Rb1 {[%clk 0:02:17]}  Nxc1 {[%clk 0:02:33]} 17. Rbxc1 {[%clk 0:02:17]}  Rad8 {[%clk 0:02:34]} 18. Ne3 {[%clk 0:01:49]}  Nc8 {[%clk 0:02:31]} 19. Rxd8 {[%clk 0:01:22]}  Rxd8 {[%clk 0:02:30]} 20. Rd1 {[%clk 0:01:23]}  Nb6 {[%clk 0:02:27]} 21. Qc2 {[%clk 0:01:23]}  Bf8 {[%clk 0:02:21]} 22. Ng4 {[%clk 0:01:07]}  Kg7 {[%clk 0:02:03]} 23. Rxd8 {[%clk 0:00:36]}  Qxd8 {[%clk 0:02:04]} 24. Ne5 {[%clk 0:00:36]}  Qd6 {[%clk 0:01:35]} 25. Nf3 {[%clk 0:00:32]}  Qc5 {[%clk 0:01:32]} 26. Bf1 {[%clk 0:00:27]}  Bd6 {[%clk 0:01:17]} 27. Kg2 {[%clk 0:00:24]}  Bc7 {[%clk 0:01:17]} 28. Qb3 {[%clk 0:00:20]}  g5 {[%clk 0:01:05]} 29. Be2 {[%clk 0:00:18]}  h6 {[%clk 0:01:03]} 30. Nd4 {[%clk 0:00:17]}  Be5 {[%clk 0:00:59]} 31. Nf3 {[%clk 0:00:15]}  Kf6 {[%clk 0:00:55]} 32. h4 {[%clk 0:00:11]}  Bc7 {[%clk 0:00:52]} 33. hxg5+ {[%clk 0:00:10]}  hxg5 {[%clk 0:00:53]} 34. Qd1 {[%clk 0:00:11]}  Ke7 {[%clk 0:00:44]} 35. Qc1 {[%clk 0:00:07]}  f6 {[%clk 0:00:40]} 36. Qh1 {[%clk 0:00:06]}  Kd7 {[%clk 0:00:38]} 37. Qh7+ {[%clk 0:00:05]}  Qe7 {[%clk 0:00:38]} 38. Qg8 {[%clk 0:00:04]}  Nxa4 {[%clk 0:00:36]} 39. e5 {[%clk 0:00:04]}  Bxe5 {[%clk 0:00:34]} 40. Nxe5+ {[%clk 0:00:04]}  fxe5 {[%clk 0:00:35]} 41. Qa8 {[%clk 0:00:04]}  Qd8 {[%clk 0:00:20]} 42. Qxb7+ {[%clk 0:00:03]}  Qc7 {[%clk 0:00:20]} 43. Qb3 {[%clk 0:00:04]}  Nc5 {[%clk 0:00:21]} 44. Qc4 {[%clk 0:00:04]}  Qd6 {[%clk 0:00:20]} 45. b4 {[%clk 0:00:03]}  axb4 {[%clk 0:00:21]} 46. cxb4 {[%clk 0:00:04]}  Nb7 {[%clk 0:00:18]} 47. Bf3 {[%clk 0:00:04]}  Nd8 {[%clk 0:00:17]} 48. b5 {[%clk 0:00:04]}  cxb5 {[%clk 0:00:17]} 49. Qxb5+ {[%clk 0:00:05]}  Ke7 {[%clk 0:00:17]} 50. Qb3 {[%clk 0:00:05]}  Kf6 {[%clk 0:00:15]} 51. Qe3 {[%clk 0:00:03]}  Nf7 {[%clk 0:00:15]} 52. Be4 {[%clk 0:00:03]}  Qd4 {[%clk 0:00:15]} 53. Qf3+ {[%clk 0:00:04]}  Kg7 {[%clk 0:00:15]} 54. Bc6 {[%clk 0:00:03]}  Qc5 {[%clk 0:00:15]} 55. Be4 {[%clk 0:00:03]}  Nd6 {[%clk 0:00:14]} 56. Qg4 {[%clk 0:00:03]}  Kf6 {[%clk 0:00:12]} 57. Qf3+ {[%clk 0:00:02]}  Ke7 {[%clk 0:00:13]} 58. Ba8 {[%clk 0:00:03]}  Qa5 {[%clk 0:00:11]} 59. Qc6 {[%clk 0:00:03]}  Kf6 {[%clk 0:00:08]} 60. Qxd6 {[%clk 0:00:03]}  Qxa8+ {[%clk 0:00:08]} 61. Kg1 {[%clk 0:00:04]}  Qa1+ {[%clk 0:00:07]} 62. Kg2 {[%clk 0:00:04]}  Qa8+ {[%clk 0:00:08]} 63. Kg1 {[%clk 0:00:04]}  Kf5 {[%clk 0:00:08]} 64. Qd3+ {[%clk 0:00:04]}  Qe4 {[%clk 0:00:07]} 65. Qd1 {[%clk 0:00:04]}  g4 {[%clk 0:00:07]} 66. Qd8 {[%clk 0:00:04]}  Qe1+ {[%clk 0:00:07]} 67. Kg2 {[%clk 0:00:05]}  Qe4+ {[%clk 0:00:08]} 68. Kg1 {[%clk 0:00:05]}  Qb1+ {[%clk 0:00:07]} 69. Kg2 {[%clk 0:00:05]}  Qb7+ {[%clk 0:00:07]} 70. Kg1 {[%clk 0:00:06]}  Ke4 {[%clk 0:00:06]} 71. Qg5 {[%clk 0:00:05]}  Qb1+ {[%clk 0:00:06]} 72. Kg2 {[%clk 0:00:06]}  Qd1 {[%clk 0:00:07]} 73. Qg6+ {[%clk 0:00:06]}  Kd5 {[%clk 0:00:06]} 74. Qf7 {[%clk 0:00:06]}  Qd4 {[%clk 0:00:04]} 75. Qd7+ {[%clk 0:00:05]}  Ke4 {[%clk 0:00:04]} 76. Qxe6 {[%clk 0:00:05]}  Kd3 {[%clk 0:00:04]} 77. Qf5+ {[%clk 0:00:05]}  Qe4+ {[%clk 0:00:05]} 78. Qxe4+ {[%clk 0:00:05]}  Kxe4 {[%clk 0:00:06]} 79. Kg1 {[%clk 0:00:04]}  Kf3 {[%clk 0:00:07]} 80. Kf1 {[%clk 0:00:04]}  e4 {[%clk 0:00:07]} 81. Ke1 {[%clk 0:00:04]}  e3 {[%clk 0:00:05]} 82. fxe3 {[%clk 0:00:05]}  Kxe3 {[%clk 0:00:05]} 83. Kf1 {[%clk 0:00:06]}  Kf3 {[%clk 0:00:06]} 84. Kg1 {[%clk 0:00:05]}  Kxg3 {[%clk 0:00:07]} 85. Kf1 {[%clk 0:00:05]}  Kf3 {[%clk 0:00:07]} 86. Kg1 {[%clk 0:00:06]}  Kg3 {[%clk 0:00:07]} 87. Kf1 {[%clk 0:00:06]}  Kh2 {[%clk 0:00:08]} 88. Kf2 {[%clk 0:00:06]}  g3+ {[%clk 0:00:09]} 89. Kf3 {[%clk 0:00:07]}  g2 {[%clk 0:00:09]} 90. Kf4 {[%clk 0:00:08]}  g1=Q {[%clk 0:00:10]} 0-1


[Site "https://www.chess.com"]

[Event "Titled Tuesday Blitz January 25 2022"]
[White "Debray, Christopher"]
[Black "Zelbel, Patrick"]
[WhiteFideId "630810"]
[BlackFideId "24624322"]
[WhiteElo "2369"]
[BlackElo "2493"]
[Result "0-1"]
[Round "07"]
[TimeControl "180+1"]
[Date "2022.01.26"]
[WhiteClock "0:00:29"]
[BlackClock "0:01:49"]

1. d4 {[%clk 0:03:00]}  g6 {[%clk 0:02:58]} 2. Bf4 {[%clk 0:03:00]}  Bg7 {[%clk 0:02:57]} 3. Nc3 {[%clk 0:03:00]}  d5 {[%clk 0:02:56]} 4. e3 {[%clk 0:03:00]}  c6 {[%clk 0:02:48]} 5. h4 {[%clk 0:02:54]}  Nf6 {[%clk 0:02:48]} 6. Nf3 {[%clk 0:02:50]}  Bg4 {[%clk 0:02:45]} 7. Be2 {[%clk 0:02:49]}  h5 {[%clk 0:02:44]} 8. Ne5 {[%clk 0:02:48]}  Bf5 {[%clk 0:02:43]} 9. Qd2 {[%clk 0:02:40]}  Nfd7 {[%clk 0:02:40]} 10. g4 {[%clk 0:02:33]}  hxg4 {[%clk 0:02:30]} 11. Nxg4 {[%clk 0:02:28]}  Na6 {[%clk 0:02:30]} 12. O-O-O {[%clk 0:02:24]}  Nc7 {[%clk 0:02:28]} 13. f3 {[%clk 0:02:13]}  Ne6 {[%clk 0:02:26]} 14. Bg3 {[%clk 0:02:10]}  b5 {[%clk 0:02:27]} 15. e4 {[%clk 0:01:54]}  Bxg4 {[%clk 0:02:24]} 16. exd5 {[%clk 0:01:38]}  Bh6 {[%clk 0:02:09]} 17. f4 {[%clk 0:00:57]}  Bxe2 {[%clk 0:02:10]} 18. dxe6 {[%clk 0:00:55]}  Bxd1 {[%clk 0:02:09]} 19. exd7+ {[%clk 0:00:54]}  Qxd7 {[%clk 0:02:09]} 20. Rxd1 {[%clk 0:00:54]}  O-O-O {[%clk 0:02:07]} 21. d5 {[%clk 0:00:46]}  b4 {[%clk 0:02:05]} 22. Na4 {[%clk 0:00:34]}  Qxd5 {[%clk 0:02:03]} 23. Qe2 {[%clk 0:00:30]}  Qxd1+ {[%clk 0:02:02]} 24. Qxd1 {[%clk 0:00:31]}  Rxd1+ {[%clk 0:02:02]} 25. Kxd1 {[%clk 0:00:32]}  Bg7 {[%clk 0:01:55]} 26. Ke2 {[%clk 0:00:31]}  Rh5 {[%clk 0:01:52]} 27. b3 {[%clk 0:00:29]}  Kd7 {[%clk 0:01:50]} 28. Kd3 {[%clk 0:00:29]}  Bf6 {[%clk 0:01:49]} 0-1


[Site "https://www.chess.com"]

[Event "Titled Tuesday Blitz January 25 2022"]
[White "Demchenko, Anton"]
[Black "Sarana, Alexey"]
[WhiteFideId "4160258"]
[BlackFideId "24133795"]
[WhiteElo "2539"]
[BlackElo "2665"]
[Result "1-0"]
[Round "07"]
[TimeControl "180+1"]
[Date "2022.01.26"]
[WhiteClock "0:00:04"]
[BlackClock "0:00:02"]

1. e4 {[%clk 0:03:00]}  c5 {[%clk 0:02:59]} 2. Nf3 {[%clk 0:02:59]}  d6 {[%clk 0:02:59]} 3. d4 {[%clk 0:03:00]}  cxd4 {[%clk 0:02:59]} 4. Qxd4 {[%clk 0:03:01]}  Nc6 {[%clk 0:02:57]} 5. Qe3 {[%clk 0:03:01]}  Nf6 {[%clk 0:02:56]} 6. Nc3 {[%clk 0:03:00]}  g6 {[%clk 0:02:54]} 7. h3 {[%clk 0:03:00]}  Bg7 {[%clk 0:02:55]} 8. Bc4 {[%clk 0:03:01]}  O-O {[%clk 0:02:55]} 9. O-O {[%clk 0:03:01]}  Bd7 {[%clk 0:02:48]} 10. Rd1 {[%clk 0:03:01]}  Rc8 {[%clk 0:02:48]} 11. Qe2 {[%clk 0:03:01]}  a6 {[%clk 0:02:46]} 12. a4 {[%clk 0:03:01]}  Qc7 {[%clk 0:02:39]} 13. Bb3 {[%clk 0:02:59]}  Na5 {[%clk 0:02:35]} 14. Bg5 {[%clk 0:02:20]}  Nxb3 {[%clk 0:02:25]} 15. cxb3 {[%clk 0:02:21]}  Bc6 {[%clk 0:02:25]} 16. b4 {[%clk 0:02:13]}  h6 {[%clk 0:02:04]} 17. Bh4 {[%clk 0:01:57]}  g5 {[%clk 0:01:15]} 18. Bg3 {[%clk 0:01:57]}  Nh5 {[%clk 0:01:15]} 19. Bh2 {[%clk 0:01:57]}  Nf4 {[%clk 0:01:10]} 20. Bxf4 {[%clk 0:01:57]}  gxf4 {[%clk 0:01:11]} 21. Nd4 {[%clk 0:01:47]}  Bxd4 {[%clk 0:01:06]} 22. Rxd4 {[%clk 0:01:47]}  e5 {[%clk 0:01:06]} 23. Rd2 {[%clk 0:01:41]}  Rcd8 {[%clk 0:00:55]} 24. Rad1 {[%clk 0:00:51]}  Rfe8 {[%clk 0:00:54]} 25. b5 {[%clk 0:00:48]}  axb5 {[%clk 0:00:48]} 26. axb5 {[%clk 0:00:49]}  Re6 {[%clk 0:00:47]} 27. bxc6 {[%clk 0:00:49]}  bxc6 {[%clk 0:00:47]} 28. b4 {[%clk 0:00:43]}  Rg6 {[%clk 0:00:41]} 29. b5 {[%clk 0:00:38]}  Qa5 {[%clk 0:00:41]} 30. Rc2 {[%clk 0:00:36]}  cxb5 {[%clk 0:00:40]} 31. Qxb5 {[%clk 0:00:34]}  Qa7 {[%clk 0:00:32]} 32. Qd3 {[%clk 0:00:30]}  Kh7 {[%clk 0:00:29]} 33. Kh2 {[%clk 0:00:26]}  Rdg8 {[%clk 0:00:28]} 34. f3 {[%clk 0:00:26]}  Qe7 {[%clk 0:00:24]} 35. Nd5 {[%clk 0:00:21]}  Qh4 {[%clk 0:00:25]} 36. Qf1 {[%clk 0:00:20]}  Rg3 {[%clk 0:00:23]} 37. Rdd2 {[%clk 0:00:16]}  Qg5 {[%clk 0:00:17]} 38. Kh1 {[%clk 0:00:13]}  Rg7 {[%clk 0:00:16]} 39. Rc6 {[%clk 0:00:11]}  Qd8 {[%clk 0:00:14]} 40. Rdc2 {[%clk 0:00:10]}  R3g6 {[%clk 0:00:10]} 41. Rd2 {[%clk 0:00:07]}  Rg3 {[%clk 0:00:09]} 42. Nc3 {[%clk 0:00:07]}  R3g6 {[%clk 0:00:09]} 43. Qd1 {[%clk 0:00:06]}  Qh4 {[%clk 0:00:08]} 44. Rcxd6 {[%clk 0:00:05]}  Rg3 {[%clk 0:00:03]} 45. Qf1 {[%clk 0:00:05]}  Qg5 {[%clk 0:00:03]} 46. Nd5 {[%clk 0:00:04]}  Rg6 {[%clk 0:00:01]} 47. Rxg6 {[%clk 0:00:04]}  Qxg6 {[%clk 0:00:02]} 48. Qf2 {[%clk 0:00:04]}  Qc6 {[%clk 0:00:02]} 49. Rc2 {[%clk 0:00:05]}  Qa6 {[%clk 0:00:02]} 50. Kh2 {[%clk 0:00:05]}  Rg7 {[%clk 0:00:03]} 51. Qe2 {[%clk 0:00:06]}  Qg6 {[%clk 0:00:03]} 52. Qd3 {[%clk 0:00:05]}  Qg3+ {[%clk 0:00:04]} 53. Kg1 {[%clk 0:00:06]}  Qe1+ {[%clk 0:00:04]} 54. Qf1 {[%clk 0:00:06]}  Qg3 {[%clk 0:00:05]} 55. Kh1 {[%clk 0:00:06]}  Qg6 {[%clk 0:00:04]} 56. Qf2 {[%clk 0:00:06]}  Qg5 {[%clk 0:00:03]} 57. Rb2 {[%clk 0:00:06]}  Rg6 {[%clk 0:00:04]} 58. Rb7 {[%clk 0:00:06]}  Kg7 {[%clk 0:00:04]} 59. Qb2 {[%clk 0:00:05]}  Qg3 {[%clk 0:00:03]} 60. Qxe5+ {[%clk 0:00:04]}  Kh7 {[%clk 0:00:01]} 61. Rxf7+ {[%clk 0:00:04]}  Kg8 {[%clk 0:00:02]} 62. Qe8# {[%clk 0:00:04]} 1-0


[Site "https://www.chess.com"]

[Event "Titled Tuesday Blitz January 25 2022"]
[White "Di Nicolantonio, Lucas"]
[Black "Yuan, Qingyu"]
[WhiteFideId "680460"]
[BlackFideId "8609772"]
[WhiteElo "2381"]
[BlackElo "2359"]
[Result "1-0"]
[Round "07"]
[TimeControl "180+1"]
[Date "2022.01.26"]
[WhiteClock "0:00:10"]
[BlackClock "0:00:06"]

1. d4 {[%clk 0:03:00]}  d5 {[%clk 0:02:13]} 2. c4 {[%clk 0:02:58]}  e6 {[%clk 0:02:13]} 3. Nf3 {[%clk 0:02:57]}  Nf6 {[%clk 0:02:14]} 4. Nc3 {[%clk 0:02:56]}  a6 {[%clk 0:02:14]} 5. c5 {[%clk 0:02:46]}  b6 {[%clk 0:02:14]} 6. cxb6 {[%clk 0:02:44]}  c5 {[%clk 0:02:14]} 7. e3 {[%clk 0:02:40]}  Nbd7 {[%clk 0:02:08]} 8. Be2 {[%clk 0:02:33]}  Nxb6 {[%clk 0:02:08]} 9. O-O {[%clk 0:02:33]}  Be7 {[%clk 0:02:03]} 10. Ne5 {[%clk 0:02:23]}  Bb7 {[%clk 0:01:52]} 11. Na4 {[%clk 0:02:19]}  Nbd7 {[%clk 0:01:45]} 12. Nxd7 {[%clk 0:02:13]}  Nxd7 {[%clk 0:01:45]} 13. dxc5 {[%clk 0:02:09]}  Nxc5 {[%clk 0:01:39]} 14. b4 {[%clk 0:02:02]}  Ne4 {[%clk 0:01:37]} 15. Bb2 {[%clk 0:01:57]}  O-O {[%clk 0:01:37]} 16. Rc1 {[%clk 0:01:51]}  Rc8 {[%clk 0:01:28]} 17. Rxc8 {[%clk 0:01:47]}  Qxc8 {[%clk 0:01:28]} 18. h3 {[%clk 0:01:34]}  Bc6 {[%clk 0:01:23]} 19. a3 {[%clk 0:01:23]}  Qb7 {[%clk 0:01:13]} 20. Nc3 {[%clk 0:01:14]}  Nd6 {[%clk 0:01:05]} 21. Bd3 {[%clk 0:01:05]}  Bf6 {[%clk 0:00:55]} 22. Qb1 {[%clk 0:01:00]}  h6 {[%clk 0:00:54]} 23. Ne2 {[%clk 0:01:01]}  Bxb2 {[%clk 0:00:51]} 24. Qxb2 {[%clk 0:01:02]}  d4 {[%clk 0:00:46]} 25. Qxd4 {[%clk 0:00:48]}  Bxg2 {[%clk 0:00:22]} 26. Qxd6 {[%clk 0:00:48]}  Bxh3 {[%clk 0:00:23]} 27. Nf4 {[%clk 0:00:27]}  Bxf1 {[%clk 0:00:23]} 28. Kxf1 {[%clk 0:00:28]}  Qc8 {[%clk 0:00:19]} 29. Bxa6 {[%clk 0:00:18]}  Qc1+ {[%clk 0:00:19]} 30. Kg2 {[%clk 0:00:19]}  Qxa3 {[%clk 0:00:18]} 31. Bd3 {[%clk 0:00:18]}  Qa8+ {[%clk 0:00:12]} 32. Kh2 {[%clk 0:00:16]}  Rd8 {[%clk 0:00:13]} 33. Qe5 {[%clk 0:00:12]}  Qf3 {[%clk 0:00:07]} 34. Be4 {[%clk 0:00:11]}  Qxf2+ {[%clk 0:00:07]} 35. Bg2 {[%clk 0:00:12]}  Qh4+ {[%clk 0:00:07]} 36. Nh3 {[%clk 0:00:12]}  Rd2 {[%clk 0:00:04]} 37. Qb8+ {[%clk 0:00:12]}  Kh7 {[%clk 0:00:04]} 38. Qe5 {[%clk 0:00:11]}  Qg4 {[%clk 0:00:03]} 39. Nf4 {[%clk 0:00:10]}  g5 {[%clk 0:00:02]} 40. Qe4+ {[%clk 0:00:10]}  f5 {[%clk 0:00:02]} 41. Qb7+ {[%clk 0:00:10]}  Kg8 {[%clk 0:00:02]} 42. Qc8+ {[%clk 0:00:10]}  Kf7 {[%clk 0:00:02]} 43. Qxe6+ {[%clk 0:00:10]}  Kg7 {[%clk 0:00:02]} 44. Qg6+ {[%clk 0:00:10]}  Kf8 {[%clk 0:00:02]} 45. Qxh6+ {[%clk 0:00:10]}  Ke7 {[%clk 0:00:02]} 46. Qe6+ {[%clk 0:00:11]}  Kd8 {[%clk 0:00:02]} 47. Qg8+ {[%clk 0:00:08]}  Kd7 {[%clk 0:00:03]} 48. Qg7+ {[%clk 0:00:08]}  Ke8 {[%clk 0:00:02]} 49. Qe5+ {[%clk 0:00:08]}  Kd8 {[%clk 0:00:02]} 50. Qa5+ {[%clk 0:00:07]}  Kd7 {[%clk 0:00:03]} 51. Qa7+ {[%clk 0:00:07]}  Kd8 {[%clk 0:00:03]} 52. Qa8+ {[%clk 0:00:08]}  Kd7 {[%clk 0:00:04]} 53. Nh3 {[%clk 0:00:07]}  Qxg2+ {[%clk 0:00:03]} 54. Qxg2 {[%clk 0:00:07]}  Rxg2+ {[%clk 0:00:04]} 55. Kxg2 {[%clk 0:00:08]}  g4 {[%clk 0:00:04]} 56. Nf4 {[%clk 0:00:08]}  Kc6 {[%clk 0:00:04]} 57. Kg3 {[%clk 0:00:08]}  Kb5 {[%clk 0:00:05]} 58. Kh4 {[%clk 0:00:09]}  Kxb4 {[%clk 0:00:05]} 59. Kg5 {[%clk 0:00:09]}  Kc3 {[%clk 0:00:05]} 60. Kxf5 {[%clk 0:00:10]}  Kd2 {[%clk 0:00:04]} 61. e4 {[%clk 0:00:10]}  g3 {[%clk 0:00:04]} 62. e5 {[%clk 0:00:11]}  Ke3 {[%clk 0:00:04]} 63. e6 {[%clk 0:00:11]}  g2 {[%clk 0:00:05]} 64. Nxg2+ {[%clk 0:00:11]}  Kd4 {[%clk 0:00:06]} 65. e7 {[%clk 0:00:10]} 1-0


[Site "https://www.chess.com"]

[Event "Titled Tuesday Blitz January 25 2022"]
[White "Donchenko, Alexander"]
[Black "Babazada, Khazar"]
[WhiteFideId "24603295"]
[BlackFideId "13413554"]
[WhiteElo "2539"]
[BlackElo "2418"]
[Result "0-1"]
[Round "07"]
[TimeControl "180+1"]
[Date "2022.01.26"]
[WhiteClock "0:00:01"]
[BlackClock "0:00:05"]

1. Nf3 {[%clk 0:03:00]}  d5 {[%clk 0:02:58]} 2. g3 {[%clk 0:03:01]}  Nf6 {[%clk 0:02:59]} 3. Bg2 {[%clk 0:03:01]}  g6 {[%clk 0:02:59]} 4. c4 {[%clk 0:03:00]}  d4 {[%clk 0:02:59]} 5. b4 {[%clk 0:03:00]}  Bg7 {[%clk 0:02:57]} 6. Bb2 {[%clk 0:02:59]}  c5 {[%clk 0:02:58]} 7. O-O {[%clk 0:02:53]}  O-O {[%clk 0:02:58]} 8. d3 {[%clk 0:02:51]}  Nfd7 {[%clk 0:02:50]} 9. Nbd2 {[%clk 0:02:47]}  cxb4 {[%clk 0:02:46]} 10. Bxd4 {[%clk 0:02:46]}  Bxd4 {[%clk 0:02:45]} 11. Nxd4 {[%clk 0:02:46]}  e5 {[%clk 0:02:43]} 12. N4f3 {[%clk 0:02:45]}  Nc6 {[%clk 0:02:43]} 13. a3 {[%clk 0:02:33]}  bxa3 {[%clk 0:02:41]} 14. Rxa3 {[%clk 0:02:32]}  Nc5 {[%clk 0:02:40]} 15. Qa1 {[%clk 0:02:30]}  Qe7 {[%clk 0:02:32]} 16. Rb1 {[%clk 0:02:28]}  Bd7 {[%clk 0:02:16]} 17. Nb3 {[%clk 0:02:26]}  Nxb3 {[%clk 0:02:12]} 18. Raxb3 {[%clk 0:02:20]}  b6 {[%clk 0:02:13]} 19. Rb5 {[%clk 0:02:08]}  Rfe8 {[%clk 0:02:05]} 20. e3 {[%clk 0:02:02]}  Rad8 {[%clk 0:01:55]} 21. Rd1 {[%clk 0:01:33]}  Bc8 {[%clk 0:01:24]} 22. h3 {[%clk 0:01:26]}  e4 {[%clk 0:01:12]} 23. dxe4 {[%clk 0:01:24]}  Rxd1+ {[%clk 0:01:13]} 24. Qxd1 {[%clk 0:01:24]}  Ba6 {[%clk 0:01:13]} 25. Rd5 {[%clk 0:01:16]}  Bxc4 {[%clk 0:01:01]} 26. Rd7 {[%clk 0:01:16]}  Rd8 {[%clk 0:00:52]} 27. Rxd8+ {[%clk 0:01:16]}  Qxd8 {[%clk 0:00:52]} 28. Qa1 {[%clk 0:01:15]}  a5 {[%clk 0:00:49]} 29. Nd4 {[%clk 0:01:13]}  Nxd4 {[%clk 0:00:43]} 30. exd4 {[%clk 0:01:14]}  b5 {[%clk 0:00:43]} 31. d5 {[%clk 0:01:10]}  a4 {[%clk 0:00:43]} 32. Qa3 {[%clk 0:01:04]}  Qf6 {[%clk 0:00:33]} 33. d6 {[%clk 0:01:00]}  Qd4 {[%clk 0:00:30]} 34. e5 {[%clk 0:00:56]}  Be6 {[%clk 0:00:20]} 35. Qc1 {[%clk 0:00:30]}  Qxe5 {[%clk 0:00:18]} 36. Qc6 {[%clk 0:00:28]}  a3 {[%clk 0:00:16]} 37. Qa8+ {[%clk 0:00:24]}  Kg7 {[%clk 0:00:13]} 38. Qxa3 {[%clk 0:00:25]}  Qd4 {[%clk 0:00:13]} 39. Qa5 {[%clk 0:00:08]}  b4 {[%clk 0:00:12]} 40. Qa4 {[%clk 0:00:04]}  Qxd6 {[%clk 0:00:11]} 41. Be4 {[%clk 0:00:04]}  b3 {[%clk 0:00:11]} 42. h4 {[%clk 0:00:03]}  h5 {[%clk 0:00:08]} 43. Qa1+ {[%clk 0:00:03]}  Kh7 {[%clk 0:00:05]} 44. Qf6 {[%clk 0:00:04]}  Qd1+ {[%clk 0:00:05]} 45. Kg2 {[%clk 0:00:04]}  Bd5 {[%clk 0:00:04]} 46. Kh2 {[%clk 0:00:03]}  Qd2 {[%clk 0:00:02]} 47. Bxg6+ {[%clk 0:00:01]}  fxg6 {[%clk 0:00:01]} 48. Qe7+ {[%clk 0:00:02]}  Kg8 {[%clk 0:00:02]} 49. Qe8+ {[%clk 0:00:02]}  Kg7 {[%clk 0:00:03]} 50. Qe5+ {[%clk 0:00:02]}  Kf7 {[%clk 0:00:03]} 51. Qc7+ {[%clk 0:00:03]}  Ke6 {[%clk 0:00:04]} 52. Qc8+ {[%clk 0:00:03]}  Ke5 {[%clk 0:00:04]} 53. Qc7+ {[%clk 0:00:03]}  Ke4 {[%clk 0:00:04]} 54. Qe7+ {[%clk 0:00:03]}  Kd3 {[%clk 0:00:05]} 55. Qf6 {[%clk 0:00:01]}  Kc2 {[%clk 0:00:05]} 56. Qxg6+ {[%clk 0:00:01]}  Kc1 {[%clk 0:00:05]} 0-1


[Site "https://www.chess.com"]